{"text_format":"3","workbook":"xlsx","n_sheets":4,"sheets":["請求書","顧客","請求書 ₋ メイン​​","請求書の詳細"],"not_rendered":{"images":6,"defined_names":8},"read":"whole","date_system":"1900"}

{"sheet":"請求書","index":0,"n_rows":40,"n_cols":8,"rows_kept":40,"merged":[[0,3,0,6],[3,5,3,6],[35,4,35,5],[36,1,36,2],[36,4,36,5],[37,4,37,5],[38,4,38,5],[39,4,39,5]]}
[{"$nulls":3},"手作業による請求書業務は大変です。請求書業務を効率化してみませんか?今すぐ Microsoft Invoicing にサインアップしましょう。"]
[{"$nulls":7}," "]
[]
[]
[null,null,"会社名"]
[null,null," 番地"]
[null,null," 郵便番号、都道府県、市区町村"]
[]
[null,"請求先 ",{"$f":"IFERROR(VLOOKUP(VLOOKUP(rngInvoice,請求書メイン[],2,FALSE),顧客リスト[],3,TRUE),\"\")","v":"Contoso 株式会社"},{"$f":"\"電話: \"&IFERROR(VLOOKUP(VLOOKUP(rngInvoice,請求書メイン[],2,FALSE),顧客リスト[],9,FALSE),\"\")","v":"電話: 432-555-0189"},null,"請求書番号","3-456-2"]
[null,null,{"$f":"IFERROR(IF((VLOOKUP(VLOOKUP(rngInvoice,請求書メイン[],2,FALSE),顧客リスト[],5,FALSE))=\"\",\"\",(VLOOKUP(VLOOKUP(rngInvoice,請求書メイン[],2,FALSE),顧客リスト[],5,FALSE))),\"\")","v":"567 Walnut Lane"},{"$f":"\"FAX: \"&IFERROR(VLOOKUP(VLOOKUP(rngInvoice,請求書メイン[],2,FALSE),顧客リスト[],11,FALSE),\"\")","v":"FAX: 432-555-0123"},null,"請求日:",{"$f":"IFERROR(IF(VLOOKUP(rngInvoice,請求書メイン[],3,FALSE)=\"\",\"\",VLOOKUP(rngInvoice,請求書メイン[],3,FALSE)),\"\")","v":"2019-11-02"}]
[null,null,{"$f":"IFERROR(VLOOKUP(VLOOKUP(rngInvoice,請求書メイン[],2,FALSE),顧客リスト[],6,FALSE)&\", \"& VLOOKUP(VLOOKUP(G9,請求書メイン[],2,FALSE),顧客リスト[],7,FALSE)&\" \"&VLOOKUP(VLOOKUP(G9,請求書メイン[],2,FALSE),顧客リスト[],8,FALSE),\"\")","v":"Moline, MO 98765"},{"$f":"\"メール​​: \"&IFERROR(VLOOKUP(VLOOKUP(rngInvoice,請求書メイン[],2,FALSE),顧客リスト[],10,FALSE),\"\")","v":"メール​​: someone@example.com"}]
[]
[]
[null,"品目番号","説明","数量","単価","割引率","価格"]
[null,{"$f":"IFERROR(INDEX(請求書の詳細[],SMALL(IF(請求書の詳細[請求書番号]=rngInvoice,ROW(請求書の詳細[])-ROW(請求書の詳細[#Headers])), ROW(2:2)), MATCH($B$14, 請求書の詳細[#Headers], 0)),\"\")","v":"Z4568"},{"$f":"IFERROR(INDEX(請求書の詳細[],SMALL(IF(請求書の詳細[請求書番号]=rngInvoice,ROW(請求書の詳細[])-ROW(請求書の詳細[#Headers])), ROW(2:2)), MATCH($C$14, 請求書の詳細[#Headers], 0)),\"\")","v":"請求書 3-456-2 データ 2"},{"$f":"IFERROR(INDEX(請求書の詳細[],SMALL(IF(請求書の詳細[請求書番号]=rngInvoice,ROW(請求書の詳細[])-ROW(請求書の詳細[#Headers])), ROW(2:2)), MATCH($D$14, 請求書の詳細[#Headers], 0)),\"\")","v":40},{"$f":"IFERROR(INDEX(請求書の詳細[],SMALL(IF(請求書の詳細[請求書番号]=rngInvoice,ROW(請求書の詳細[])-ROW(請求書の詳細[#Headers])), ROW(2:2)), MATCH($E$14, 請求書の詳細[#Headers], 0)),\"\")","v":{"v":4,"d":"¥4.00"}},{"$f":"IFERROR(INDEX(請求書の詳細[],SMALL(IF(請求書の詳細[請求書番号]=rngInvoice,ROW(請求書の詳細[])-ROW(請求書の詳細[#Headers])), ROW(2:2)), MATCH($F$14, 請求書の詳細[#Headers], 0)),\"\")","v":{"v":5,"d":"¥5.00"}},{"$f":"IFERROR((D15*E15)-F15,\"\")","v":{"v":155,"d":"¥155.00"}}]
[null,{"$f":"IFERROR(INDEX(請求書の詳細[],SMALL(IF(請求書の詳細[請求書番号]=rngInvoice,ROW(請求書の詳細[])-ROW(請求書の詳細[#Headers])), ROW(3:3)), MATCH($B$14, 請求書の詳細[#Headers], 0)),\"\")","v":"Z4569"},{"$f":"IFERROR(INDEX(請求書の詳細[],SMALL(IF(請求書の詳細[請求書番号]=rngInvoice,ROW(請求書の詳細[])-ROW(請求書の詳細[#Headers])), ROW(3:3)), MATCH($C$14, 請求書の詳細[#Headers], 0)),\"\")","v":"請求書 3-456-2 データ 3"},{"$f":"IFERROR(INDEX(請求書の詳細[],SMALL(IF(請求書の詳細[請求書番号]=rngInvoice,ROW(請求書の詳細[])-ROW(請求書の詳細[#Headers])), ROW(3:3)), MATCH($D$14, 請求書の詳細[#Headers], 0)),\"\")","v":30},{"$f":"IFERROR(INDEX(請求書の詳細[],SMALL(IF(請求書の詳細[請求書番号]=rngInvoice,ROW(請求書の詳細[])-ROW(請求書の詳細[#Headers])), ROW(3:3)), MATCH($E$14, 請求書の詳細[#Headers], 0)),\"\")","v":{"v":6,"d":"¥6.00"}},{"$f":"IFERROR(INDEX(請求書の詳細[],SMALL(IF(請求書の詳細[請求書番号]=rngInvoice,ROW(請求書の詳細[])-ROW(請求書の詳細[#Headers])), ROW(3:3)), MATCH($F$14, 請求書の詳細[#Headers], 0)),\"\")","v":{"v":7,"d":"¥7.00"}},{"$f":"IFERROR((D16*E16)-F16,\"\")","v":{"v":173,"d":"¥173.00"}}]
[null,{"$f":"IFERROR(INDEX(請求書の詳細[],SMALL(IF(請求書の詳細[請求書番号]=rngInvoice,ROW(請求書の詳細[])-ROW(請求書の詳細[#Headers])), ROW(4:4)), MATCH($B$14, 請求書の詳細[#Headers], 0)),\"\")","v":"Z4570"},{"$f":"IFERROR(INDEX(請求書の詳細[],SMALL(IF(請求書の詳細[請求書番号]=rngInvoice,ROW(請求書の詳細[])-ROW(請求書の詳細[#Headers])), ROW(4:4)), MATCH($C$14, 請求書の詳細[#Headers], 0)),\"\")","v":"請求書 3-456-2 データ 4"},{"$f":"IFERROR(INDEX(請求書の詳細[],SMALL(IF(請求書の詳細[請求書番号]=rngInvoice,ROW(請求書の詳細[])-ROW(請求書の詳細[#Headers])), ROW(4:4)), MATCH($D$14, 請求書の詳細[#Headers], 0)),\"\")","v":40},{"$f":"IFERROR(INDEX(請求書の詳細[],SMALL(IF(請求書の詳細[請求書番号]=rngInvoice,ROW(請求書の詳細[])-ROW(請求書の詳細[#Headers])), ROW(4:4)), MATCH($E$14, 請求書の詳細[#Headers], 0)),\"\")","v":{"v":7,"d":"¥7.00"}},{"$f":"IFERROR(INDEX(請求書の詳細[],SMALL(IF(請求書の詳細[請求書番号]=rngInvoice,ROW(請求書の詳細[])-ROW(請求書の詳細[#Headers])), ROW(4:4)), MATCH($F$14, 請求書の詳細[#Headers], 0)),\"\")","v":{"v":0,"d":"¥0.00"}},{"v":280,"d":"¥280.00"}]
[null,{"$f":"IFERROR(INDEX(請求書の詳細[],SMALL(IF(請求書の詳細[請求書番号]=rngInvoice,ROW(請求書の詳細[])-ROW(請求書の詳細[#Headers])), ROW(5:5)), MATCH($B$14, 請求書の詳細[#Headers], 0)),\"\")","v":"Z4571"},{"$f":"IFERROR(INDEX(請求書の詳細[],SMALL(IF(請求書の詳細[請求書番号]=rngInvoice,ROW(請求書の詳細[])-ROW(請求書の詳細[#Headers])), ROW(5:5)), MATCH($C$14, 請求書の詳細[#Headers], 0)),\"\")","v":"請求書 3-456-2 データ 5"},{"$f":"IFERROR(INDEX(請求書の詳細[],SMALL(IF(請求書の詳細[請求書番号]=rngInvoice,ROW(請求書の詳細[])-ROW(請求書の詳細[#Headers])), ROW(5:5)), MATCH($D$14, 請求書の詳細[#Headers], 0)),\"\")","v":10},{"$f":"IFERROR(INDEX(請求書の詳細[],SMALL(IF(請求書の詳細[請求書番号]=rngInvoice,ROW(請求書の詳細[])-ROW(請求書の詳細[#Headers])), ROW(5:5)), MATCH($E$14, 請求書の詳細[#Headers], 0)),\"\")","v":{"v":4,"d":"¥4.00"}},{"$f":"IFERROR(INDEX(請求書の詳細[],SMALL(IF(請求書の詳細[請求書番号]=rngInvoice,ROW(請求書の詳細[])-ROW(請求書の詳細[#Headers])), ROW(5:5)), MATCH($F$14, 請求書の詳細[#Headers], 0)),\"\")","v":{"v":0,"d":"¥0.00"}},{"v":40,"d":"¥40.00"}]
[null,{"$f":"IFERROR(INDEX(請求書の詳細[],SMALL(IF(請求書の詳細[請求書番号]=rngInvoice,ROW(請求書の詳細[])-ROW(請求書の詳細[#Headers])), ROW(6:6)), MATCH($B$14, 請求書の詳細[#Headers], 0)),\"\")","v":"Z4572"},{"$f":"IFERROR(INDEX(請求書の詳細[],SMALL(IF(請求書の詳細[請求書番号]=rngInvoice,ROW(請求書の詳細[])-ROW(請求書の詳細[#Headers])), ROW(6:6)), MATCH($C$14, 請求書の詳細[#Headers], 0)),\"\")","v":"請求書 3-456-2 データ 6"},{"$f":"IFERROR(INDEX(請求書の詳細[],SMALL(IF(請求書の詳細[請求書番号]=rngInvoice,ROW(請求書の詳細[])-ROW(請求書の詳細[#Headers])), ROW(6:6)), MATCH($D$14, 請求書の詳細[#Headers], 0)),\"\")","v":5},{"$f":"IFERROR(INDEX(請求書の詳細[],SMALL(IF(請求書の詳細[請求書番号]=rngInvoice,ROW(請求書の詳細[])-ROW(請求書の詳細[#Headers])), ROW(6:6)), MATCH($E$14, 請求書の詳細[#Headers], 0)),\"\")","v":{"v":8,"d":"¥8.00"}},{"$f":"IFERROR(INDEX(請求書の詳細[],SMALL(IF(請求書の詳細[請求書番号]=rngInvoice,ROW(請求書の詳細[])-ROW(請求書の詳細[#Headers])), ROW(6:6)), MATCH($F$14, 請求書の詳細[#Headers], 0)),\"\")","v":{"v":0,"d":"¥0.00"}},{"v":40,"d":"¥40.00"}]
[null,{"$f":"IFERROR(INDEX(請求書の詳細[],SMALL(IF(請求書の詳細[請求書番号]=rngInvoice,ROW(請求書の詳細[])-ROW(請求書の詳細[#Headers])), ROW(7:7)), MATCH($B$14, 請求書の詳細[#Headers], 0)),\"\")","v":"Z4573"},{"$f":"IFERROR(INDEX(請求書の詳細[],SMALL(IF(請求書の詳細[請求書番号]=rngInvoice,ROW(請求書の詳細[])-ROW(請求書の詳細[#Headers])), ROW(7:7)), MATCH($C$14, 請求書の詳細[#Headers], 0)),\"\")","v":"請求書 3-456-2 データ 7"},{"$f":"IFERROR(INDEX(請求書の詳細[],SMALL(IF(請求書の詳細[請求書番号]=rngInvoice,ROW(請求書の詳細[])-ROW(請求書の詳細[#Headers])), ROW(7:7)), MATCH($D$14, 請求書の詳細[#Headers], 0)),\"\")","v":70},{"$f":"IFERROR(INDEX(請求書の詳細[],SMALL(IF(請求書の詳細[請求書番号]=rngInvoice,ROW(請求書の詳細[])-ROW(請求書の詳細[#Headers])), ROW(7:7)), MATCH($E$14, 請求書の詳細[#Headers], 0)),\"\")","v":{"v":6,"d":"¥6.00"}},{"$f":"IFERROR(INDEX(請求書の詳細[],SMALL(IF(請求書の詳細[請求書番号]=rngInvoice,ROW(請求書の詳細[])-ROW(請求書の詳細[#Headers])), ROW(7:7)), MATCH($F$14, 請求書の詳細[#Headers], 0)),\"\")","v":{"v":0,"d":"¥0.00"}},{"v":420,"d":"¥420.00"}]
[null,{"$f":"IFERROR(INDEX(請求書の詳細[],SMALL(IF(請求書の詳細[請求書番号]=rngInvoice,ROW(請求書の詳細[])-ROW(請求書の詳細[#Headers])), ROW(8:8)), MATCH($B$14, 請求書の詳細[#Headers], 0)),\"\")","v":"Z4574"},{"$f":"IFERROR(INDEX(請求書の詳細[],SMALL(IF(請求書の詳細[請求書番号]=rngInvoice,ROW(請求書の詳細[])-ROW(請求書の詳細[#Headers])), ROW(8:8)), MATCH($C$14, 請求書の詳細[#Headers], 0)),\"\")","v":"請求書 3-456-2 データ 8"},{"$f":"IFERROR(INDEX(請求書の詳細[],SMALL(IF(請求書の詳細[請求書番号]=rngInvoice,ROW(請求書の詳細[])-ROW(請求書の詳細[#Headers])), ROW(8:8)), MATCH($D$14, 請求書の詳細[#Headers], 0)),\"\")","v":25},{"$f":"IFERROR(INDEX(請求書の詳細[],SMALL(IF(請求書の詳細[請求書番号]=rngInvoice,ROW(請求書の詳細[])-ROW(請求書の詳細[#Headers])), ROW(8:8)), MATCH($E$14, 請求書の詳細[#Headers], 0)),\"\")","v":{"v":4,"d":"¥4.00"}},{"$f":"IFERROR(INDEX(請求書の詳細[],SMALL(IF(請求書の詳細[請求書番号]=rngInvoice,ROW(請求書の詳細[])-ROW(請求書の詳細[#Headers])), ROW(8:8)), MATCH($F$14, 請求書の詳細[#Headers], 0)),\"\")","v":{"v":0,"d":"¥0.00"}},{"v":100,"d":"¥100.00"}]
[null,{"$f":"IFERROR(INDEX(請求書の詳細[],SMALL(IF(請求書の詳細[請求書番号]=rngInvoice,ROW(請求書の詳細[])-ROW(請求書の詳細[#Headers])), ROW(9:9)), MATCH($B$14, 請求書の詳細[#Headers], 0)),\"\")","v":"Z4575"},{"$f":"IFERROR(INDEX(請求書の詳細[],SMALL(IF(請求書の詳細[請求書番号]=rngInvoice,ROW(請求書の詳細[])-ROW(請求書の詳細[#Headers])), ROW(9:9)), MATCH($C$14, 請求書の詳細[#Headers], 0)),\"\")","v":"請求書 3-456-2 データ 9"},{"$f":"IFERROR(INDEX(請求書の詳細[],SMALL(IF(請求書の詳細[請求書番号]=rngInvoice,ROW(請求書の詳細[])-ROW(請求書の詳細[#Headers])), ROW(9:9)), MATCH($D$14, 請求書の詳細[#Headers], 0)),\"\")","v":5},{"$f":"IFERROR(INDEX(請求書の詳細[],SMALL(IF(請求書の詳細[請求書番号]=rngInvoice,ROW(請求書の詳細[])-ROW(請求書の詳細[#Headers])), ROW(9:9)), MATCH($E$14, 請求書の詳細[#Headers], 0)),\"\")","v":{"v":7,"d":"¥7.00"}},{"$f":"IFERROR(INDEX(請求書の詳細[],SMALL(IF(請求書の詳細[請求書番号]=rngInvoice,ROW(請求書の詳細[])-ROW(請求書の詳細[#Headers])), ROW(9:9)), MATCH($F$14, 請求書の詳細[#Headers], 0)),\"\")","v":{"v":3,"d":"¥3.00"}},{"v":32,"d":"¥32.00"}]
[null,{"$f":"IFERROR(INDEX(請求書の詳細[],SMALL(IF(請求書の詳細[請求書番号]=rngInvoice,ROW(請求書の詳細[])-ROW(請求書の詳細[#Headers])), ROW(10:10)), MATCH($B$14, 請求書の詳細[#Headers], 0)),\"\")","v":"Z4576"},{"$f":"IFERROR(INDEX(請求書の詳細[],SMALL(IF(請求書の詳細[請求書番号]=rngInvoice,ROW(請求書の詳細[])-ROW(請求書の詳細[#Headers])), ROW(10:10)), MATCH($C$14, 請求書の詳細[#Headers], 0)),\"\")","v":"請求書 3-456-2 データ 10"},{"$f":"IFERROR(INDEX(請求書の詳細[],SMALL(IF(請求書の詳細[請求書番号]=rngInvoice,ROW(請求書の詳細[])-ROW(請求書の詳細[#Headers])), ROW(10:10)), MATCH($D$14, 請求書の詳細[#Headers], 0)),\"\")","v":80},{"$f":"IFERROR(INDEX(請求書の詳細[],SMALL(IF(請求書の詳細[請求書番号]=rngInvoice,ROW(請求書の詳細[])-ROW(請求書の詳細[#Headers])), ROW(10:10)), MATCH($E$14, 請求書の詳細[#Headers], 0)),\"\")","v":{"v":1,"d":"¥1.00"}},{"$f":"IFERROR(INDEX(請求書の詳細[],SMALL(IF(請求書の詳細[請求書番号]=rngInvoice,ROW(請求書の詳細[])-ROW(請求書の詳細[#Headers])), ROW(10:10)), MATCH($F$14, 請求書の詳細[#Headers], 0)),\"\")","v":{"v":0,"d":"¥0.00"}},{"v":80,"d":"¥80.00"}]
[null,{"$f":"IFERROR(INDEX(請求書の詳細[],SMALL(IF(請求書の詳細[請求書番号]=rngInvoice,ROW(請求書の詳細[])-ROW(請求書の詳細[#Headers])), ROW(11:11)), MATCH($B$14, 請求書の詳細[#Headers], 0)),\"\")","v":"Z4577"},{"$f":"IFERROR(INDEX(請求書の詳細[],SMALL(IF(請求書の詳細[請求書番号]=rngInvoice,ROW(請求書の詳細[])-ROW(請求書の詳細[#Headers])), ROW(11:11)), MATCH($C$14, 請求書の詳細[#Headers], 0)),\"\")","v":"請求書 3-456-2 データ 11"},{"$f":"IFERROR(INDEX(請求書の詳細[],SMALL(IF(請求書の詳細[請求書番号]=rngInvoice,ROW(請求書の詳細[])-ROW(請求書の詳細[#Headers])), ROW(11:11)), MATCH($D$14, 請求書の詳細[#Headers], 0)),\"\")","v":65},{"$f":"IFERROR(INDEX(請求書の詳細[],SMALL(IF(請求書の詳細[請求書番号]=rngInvoice,ROW(請求書の詳細[])-ROW(請求書の詳細[#Headers])), ROW(11:11)), MATCH($E$14, 請求書の詳細[#Headers], 0)),\"\")","v":{"v":7,"d":"¥7.00"}},{"$f":"IFERROR(INDEX(請求書の詳細[],SMALL(IF(請求書の詳細[請求書番号]=rngInvoice,ROW(請求書の詳細[])-ROW(請求書の詳細[#Headers])), ROW(11:11)), MATCH($F$14, 請求書の詳細[#Headers], 0)),\"\")","v":{"v":0,"d":"¥0.00"}},{"v":455,"d":"¥455.00"}]
[null,{"$f":"IFERROR(INDEX(請求書の詳細[],SMALL(IF(請求書の詳細[請求書番号]=rngInvoice,ROW(請求書の詳細[])-ROW(請求書の詳細[#Headers])), ROW(12:12)), MATCH($B$14, 請求書の詳細[#Headers], 0)),\"\")","v":"Z4578"},{"$f":"IFERROR(INDEX(請求書の詳細[],SMALL(IF(請求書の詳細[請求書番号]=rngInvoice,ROW(請求書の詳細[])-ROW(請求書の詳細[#Headers])), ROW(12:12)), MATCH($C$14, 請求書の詳細[#Headers], 0)),\"\")","v":"請求書 3-456-2 データ 12"},{"$f":"IFERROR(INDEX(請求書の詳細[],SMALL(IF(請求書の詳細[請求書番号]=rngInvoice,ROW(請求書の詳細[])-ROW(請求書の詳細[#Headers])), ROW(12:12)), MATCH($D$14, 請求書の詳細[#Headers], 0)),\"\")","v":44},{"$f":"IFERROR(INDEX(請求書の詳細[],SMALL(IF(請求書の詳細[請求書番号]=rngInvoice,ROW(請求書の詳細[])-ROW(請求書の詳細[#Headers])), ROW(12:12)), MATCH($E$14, 請求書の詳細[#Headers], 0)),\"\")","v":{"v":1,"d":"¥1.00"}},{"$f":"IFERROR(INDEX(請求書の詳細[],SMALL(IF(請求書の詳細[請求書番号]=rngInvoice,ROW(請求書の詳細[])-ROW(請求書の詳細[#Headers])), ROW(12:12)), MATCH($F$14, 請求書の詳細[#Headers], 0)),\"\")","v":{"v":0,"d":"¥0.00"}},{"v":44,"d":"¥44.00"}]
[null,{"$f":"IFERROR(INDEX(請求書の詳細[],SMALL(IF(請求書の詳細[請求書番号]=rngInvoice,ROW(請求書の詳細[])-ROW(請求書の詳細[#Headers])), ROW(13:13)), MATCH($B$14, 請求書の詳細[#Headers], 0)),\"\")","v":""},{"$f":"IFERROR(INDEX(請求書の詳細[],SMALL(IF(請求書の詳細[請求書番号]=rngInvoice,ROW(請求書の詳細[])-ROW(請求書の詳細[#Headers])), ROW(13:13)), MATCH($C$14, 請求書の詳細[#Headers], 0)),\"\")","v":""},{"$f":"IFERROR(INDEX(請求書の詳細[],SMALL(IF(請求書の詳細[請求書番号]=rngInvoice,ROW(請求書の詳細[])-ROW(請求書の詳細[#Headers])), ROW(13:13)), MATCH($D$14, 請求書の詳細[#Headers], 0)),\"\")","v":""},{"$f":"IFERROR(INDEX(請求書の詳細[],SMALL(IF(請求書の詳細[請求書番号]=rngInvoice,ROW(請求書の詳細[])-ROW(請求書の詳細[#Headers])), ROW(13:13)), MATCH($E$14, 請求書の詳細[#Headers], 0)),\"\")","v":""},{"$f":"IFERROR(INDEX(請求書の詳細[],SMALL(IF(請求書の詳細[請求書番号]=rngInvoice,ROW(請求書の詳細[])-ROW(請求書の詳細[#Headers])), ROW(13:13)), MATCH($F$14, 請求書の詳細[#Headers], 0)),\"\")","v":""},""]
[null,{"$f":"IFERROR(INDEX(請求書の詳細[],SMALL(IF(請求書の詳細[請求書番号]=rngInvoice,ROW(請求書の詳細[])-ROW(請求書の詳細[#Headers])), ROW(14:14)), MATCH($B$14, 請求書の詳細[#Headers], 0)),\"\")","v":""},{"$f":"IFERROR(INDEX(請求書の詳細[],SMALL(IF(請求書の詳細[請求書番号]=rngInvoice,ROW(請求書の詳細[])-ROW(請求書の詳細[#Headers])), ROW(14:14)), MATCH($C$14, 請求書の詳細[#Headers], 0)),\"\")","v":""},{"$f":"IFERROR(INDEX(請求書の詳細[],SMALL(IF(請求書の詳細[請求書番号]=rngInvoice,ROW(請求書の詳細[])-ROW(請求書の詳細[#Headers])), ROW(14:14)), MATCH($D$14, 請求書の詳細[#Headers], 0)),\"\")","v":""},{"$f":"IFERROR(INDEX(請求書の詳細[],SMALL(IF(請求書の詳細[請求書番号]=rngInvoice,ROW(請求書の詳細[])-ROW(請求書の詳細[#Headers])), ROW(14:14)), MATCH($E$14, 請求書の詳細[#Headers], 0)),\"\")","v":""},{"$f":"IFERROR(INDEX(請求書の詳細[],SMALL(IF(請求書の詳細[請求書番号]=rngInvoice,ROW(請求書の詳細[])-ROW(請求書の詳細[#Headers])), ROW(14:14)), MATCH($F$14, 請求書の詳細[#Headers], 0)),\"\")","v":""},""]
[null,{"$f":"IFERROR(INDEX(請求書の詳細[],SMALL(IF(請求書の詳細[請求書番号]=rngInvoice,ROW(請求書の詳細[])-ROW(請求書の詳細[#Headers])), ROW(15:15)), MATCH($B$14, 請求書の詳細[#Headers], 0)),\"\")","v":""},{"$f":"IFERROR(INDEX(請求書の詳細[],SMALL(IF(請求書の詳細[請求書番号]=rngInvoice,ROW(請求書の詳細[])-ROW(請求書の詳細[#Headers])), ROW(15:15)), MATCH($C$14, 請求書の詳細[#Headers], 0)),\"\")","v":""},{"$f":"IFERROR(INDEX(請求書の詳細[],SMALL(IF(請求書の詳細[請求書番号]=rngInvoice,ROW(請求書の詳細[])-ROW(請求書の詳細[#Headers])), ROW(15:15)), MATCH($D$14, 請求書の詳細[#Headers], 0)),\"\")","v":""},{"$f":"IFERROR(INDEX(請求書の詳細[],SMALL(IF(請求書の詳細[請求書番号]=rngInvoice,ROW(請求書の詳細[])-ROW(請求書の詳細[#Headers])), ROW(15:15)), MATCH($E$14, 請求書の詳細[#Headers], 0)),\"\")","v":""},{"$f":"IFERROR(INDEX(請求書の詳細[],SMALL(IF(請求書の詳細[請求書番号]=rngInvoice,ROW(請求書の詳細[])-ROW(請求書の詳細[#Headers])), ROW(15:15)), MATCH($F$14, 請求書の詳細[#Headers], 0)),\"\")","v":""},""]
[null,{"$f":"IFERROR(INDEX(請求書の詳細[],SMALL(IF(請求書の詳細[請求書番号]=rngInvoice,ROW(請求書の詳細[])-ROW(請求書の詳細[#Headers])), ROW(16:16)), MATCH($B$14, 請求書の詳細[#Headers], 0)),\"\")","v":""},{"$f":"IFERROR(INDEX(請求書の詳細[],SMALL(IF(請求書の詳細[請求書番号]=rngInvoice,ROW(請求書の詳細[])-ROW(請求書の詳細[#Headers])), ROW(16:16)), MATCH($C$14, 請求書の詳細[#Headers], 0)),\"\")","v":""},{"$f":"IFERROR(INDEX(請求書の詳細[],SMALL(IF(請求書の詳細[請求書番号]=rngInvoice,ROW(請求書の詳細[])-ROW(請求書の詳細[#Headers])), ROW(16:16)), MATCH($D$14, 請求書の詳細[#Headers], 0)),\"\")","v":""},{"$f":"IFERROR(INDEX(請求書の詳細[],SMALL(IF(請求書の詳細[請求書番号]=rngInvoice,ROW(請求書の詳細[])-ROW(請求書の詳細[#Headers])), ROW(16:16)), MATCH($E$14, 請求書の詳細[#Headers], 0)),\"\")","v":""},{"$f":"IFERROR(INDEX(請求書の詳細[],SMALL(IF(請求書の詳細[請求書番号]=rngInvoice,ROW(請求書の詳細[])-ROW(請求書の詳細[#Headers])), ROW(16:16)), MATCH($F$14, 請求書の詳細[#Headers], 0)),\"\")","v":""},""]
[null,{"$f":"IFERROR(INDEX(請求書の詳細[],SMALL(IF(請求書の詳細[請求書番号]=rngInvoice,ROW(請求書の詳細[])-ROW(請求書の詳細[#Headers])), ROW(17:17)), MATCH($B$14, 請求書の詳細[#Headers], 0)),\"\")","v":""},{"$f":"IFERROR(INDEX(請求書の詳細[],SMALL(IF(請求書の詳細[請求書番号]=rngInvoice,ROW(請求書の詳細[])-ROW(請求書の詳細[#Headers])), ROW(17:17)), MATCH($C$14, 請求書の詳細[#Headers], 0)),\"\")","v":""},{"$f":"IFERROR(INDEX(請求書の詳細[],SMALL(IF(請求書の詳細[請求書番号]=rngInvoice,ROW(請求書の詳細[])-ROW(請求書の詳細[#Headers])), ROW(17:17)), MATCH($D$14, 請求書の詳細[#Headers], 0)),\"\")","v":""},{"$f":"IFERROR(INDEX(請求書の詳細[],SMALL(IF(請求書の詳細[請求書番号]=rngInvoice,ROW(請求書の詳細[])-ROW(請求書の詳細[#Headers])), ROW(17:17)), MATCH($E$14, 請求書の詳細[#Headers], 0)),\"\")","v":""},{"$f":"IFERROR(INDEX(請求書の詳細[],SMALL(IF(請求書の詳細[請求書番号]=rngInvoice,ROW(請求書の詳細[])-ROW(請求書の詳細[#Headers])), ROW(17:17)), MATCH($F$14, 請求書の詳細[#Headers], 0)),\"\")","v":""},""]
[null,{"$f":"IFERROR(INDEX(請求書の詳細[],SMALL(IF(請求書の詳細[請求書番号]=rngInvoice,ROW(請求書の詳細[])-ROW(請求書の詳細[#Headers])), ROW(18:18)), MATCH($B$14, 請求書の詳細[#Headers], 0)),\"\")","v":""},{"$f":"IFERROR(INDEX(請求書の詳細[],SMALL(IF(請求書の詳細[請求書番号]=rngInvoice,ROW(請求書の詳細[])-ROW(請求書の詳細[#Headers])), ROW(18:18)), MATCH($C$14, 請求書の詳細[#Headers], 0)),\"\")","v":""},{"$f":"IFERROR(INDEX(請求書の詳細[],SMALL(IF(請求書の詳細[請求書番号]=rngInvoice,ROW(請求書の詳細[])-ROW(請求書の詳細[#Headers])), ROW(18:18)), MATCH($D$14, 請求書の詳細[#Headers], 0)),\"\")","v":""},{"$f":"IFERROR(INDEX(請求書の詳細[],SMALL(IF(請求書の詳細[請求書番号]=rngInvoice,ROW(請求書の詳細[])-ROW(請求書の詳細[#Headers])), ROW(18:18)), MATCH($E$14, 請求書の詳細[#Headers], 0)),\"\")","v":""},{"$f":"IFERROR(INDEX(請求書の詳細[],SMALL(IF(請求書の詳細[請求書番号]=rngInvoice,ROW(請求書の詳細[])-ROW(請求書の詳細[#Headers])), ROW(18:18)), MATCH($F$14, 請求書の詳細[#Headers], 0)),\"\")","v":""},""]
[null,{"$f":"IFERROR(INDEX(請求書の詳細[],SMALL(IF(請求書の詳細[請求書番号]=rngInvoice,ROW(請求書の詳細[])-ROW(請求書の詳細[#Headers])), ROW(19:19)), MATCH($B$14, 請求書の詳細[#Headers], 0)),\"\")","v":""},{"$f":"IFERROR(INDEX(請求書の詳細[],SMALL(IF(請求書の詳細[請求書番号]=rngInvoice,ROW(請求書の詳細[])-ROW(請求書の詳細[#Headers])), ROW(19:19)), MATCH($C$14, 請求書の詳細[#Headers], 0)),\"\")","v":""},{"$f":"IFERROR(INDEX(請求書の詳細[],SMALL(IF(請求書の詳細[請求書番号]=rngInvoice,ROW(請求書の詳細[])-ROW(請求書の詳細[#Headers])), ROW(19:19)), MATCH($D$14, 請求書の詳細[#Headers], 0)),\"\")","v":""},{"$f":"IFERROR(INDEX(請求書の詳細[],SMALL(IF(請求書の詳細[請求書番号]=rngInvoice,ROW(請求書の詳細[])-ROW(請求書の詳細[#Headers])), ROW(19:19)), MATCH($E$14, 請求書の詳細[#Headers], 0)),\"\")","v":""},{"$f":"IFERROR(INDEX(請求書の詳細[],SMALL(IF(請求書の詳細[請求書番号]=rngInvoice,ROW(請求書の詳細[])-ROW(請求書の詳細[#Headers])), ROW(19:19)), MATCH($F$14, 請求書の詳細[#Headers], 0)),\"\")","v":""},""]
[null,{"$f":"IFERROR(INDEX(請求書の詳細[],SMALL(IF(請求書の詳細[請求書番号]=rngInvoice,ROW(請求書の詳細[])-ROW(請求書の詳細[#Headers])), ROW(20:20)), MATCH($B$14, 請求書の詳細[#Headers], 0)),\"\")","v":""},{"$f":"IFERROR(INDEX(請求書の詳細[],SMALL(IF(請求書の詳細[請求書番号]=rngInvoice,ROW(請求書の詳細[])-ROW(請求書の詳細[#Headers])), ROW(20:20)), MATCH($C$14, 請求書の詳細[#Headers], 0)),\"\")","v":""},{"$f":"IFERROR(INDEX(請求書の詳細[],SMALL(IF(請求書の詳細[請求書番号]=rngInvoice,ROW(請求書の詳細[])-ROW(請求書の詳細[#Headers])), ROW(20:20)), MATCH($D$14, 請求書の詳細[#Headers], 0)),\"\")","v":""},{"$f":"IFERROR(INDEX(請求書の詳細[],SMALL(IF(請求書の詳細[請求書番号]=rngInvoice,ROW(請求書の詳細[])-ROW(請求書の詳細[#Headers])), ROW(20:20)), MATCH($E$14, 請求書の詳細[#Headers], 0)),\"\")","v":""},{"$f":"IFERROR(INDEX(請求書の詳細[],SMALL(IF(請求書の詳細[請求書番号]=rngInvoice,ROW(請求書の詳細[])-ROW(請求書の詳細[#Headers])), ROW(20:20)), MATCH($F$14, 請求書の詳細[#Headers], 0)),\"\")","v":""},""]
[null,{"$f":"IFERROR(INDEX(請求書の詳細[],SMALL(IF(請求書の詳細[請求書番号]=rngInvoice,ROW(請求書の詳細[])-ROW(請求書の詳細[#Headers])), ROW(21:21)), MATCH($B$14, 請求書の詳細[#Headers], 0)),\"\")","v":""},{"$f":"IFERROR(INDEX(請求書の詳細[],SMALL(IF(請求書の詳細[請求書番号]=rngInvoice,ROW(請求書の詳細[])-ROW(請求書の詳細[#Headers])), ROW(21:21)), MATCH($C$14, 請求書の詳細[#Headers], 0)),\"\")","v":""},{"$f":"IFERROR(INDEX(請求書の詳細[],SMALL(IF(請求書の詳細[請求書番号]=rngInvoice,ROW(請求書の詳細[])-ROW(請求書の詳細[#Headers])), ROW(21:21)), MATCH($D$14, 請求書の詳細[#Headers], 0)),\"\")","v":""},{"$f":"IFERROR(INDEX(請求書の詳細[],SMALL(IF(請求書の詳細[請求書番号]=rngInvoice,ROW(請求書の詳細[])-ROW(請求書の詳細[#Headers])), ROW(21:21)), MATCH($E$14, 請求書の詳細[#Headers], 0)),\"\")","v":""},{"$f":"IFERROR(INDEX(請求書の詳細[],SMALL(IF(請求書の詳細[請求書番号]=rngInvoice,ROW(請求書の詳細[])-ROW(請求書の詳細[#Headers])), ROW(21:21)), MATCH($F$14, 請求書の詳細[#Headers], 0)),\"\")","v":""},""]
[]
[{"$nulls":4},"請求書小計",null,{"$f":"SUM(プロジェクト請求書[価格])","v":{"v":1819,"d":"¥1,819.00"}}]
[null,"<#> 以内に全額をお支払いください。期限が過ぎた場合、月あたり <#>% のサービス料金が加算されます。",null,null,{"$f":"IFERROR(\"消費税 (\" & TEXT(VLOOKUP(rngInvoice,請求書メイン[],5),\"0.00%\") & \")\",\"売上税率\")","v":"消費税 (8.75%)"},null,{"$f":"IFERROR(G36*VLOOKUP(rngInvoice,請求書メイン[],5),0)","v":{"v":159.1625,"d":"¥159.16"}}]
[{"$nulls":4},"その他",null,{"$f":"IFERROR(VLOOKUP(rngInvoice,請求書メイン[],6),0)","v":{"v":0,"d":"¥0.00"}}]
[null,{"$f":"\"すべての小切手の振り出し先を\"&会社名&\"に指定します\"&\".\"","v":"すべての小切手の振り出し先を会社名に指定します."},null,null,"前金受領済み",null,{"$f":"IFERROR(VLOOKUP(rngInvoice,請求書メイン[],7),0)","v":{"v":0,"d":"¥0.00"}}]
[null,"ご利用ありがとうございます。",null,null,"集計",null,{"$f":"(G36+G37+G38)-G39","v":{"v":1978.1625,"d":"¥1,978.16"}}]

{"sheet":"顧客","index":1,"n_rows":7,"n_cols":13,"rows_kept":7}
[{"$nulls":12}," "]
[]
[]
[null,"参照","会社番号","会社名","連絡先の名前","住所","市区町村","都道府県","郵便番号","電話","メール​​","FAX"]
[null,{"$f":"C5& \" - \"&D5","v":"1 - 中央日本株式会社 "},1,"中央日本株式会社 ","Mirjam Nilsson","345 Cherry Street","Albany","SD",12345,"432-555-0178","someone@example.com","432-555-0187"]
[null,"2 - Contoso 株式会社",2,"Contoso 株式会社","Angelica Astrom","567 Walnut Lane","Moline","MO",98765,"432-555-0189","someone@example.com","432-555-0123"]
[null,"集計",{"$f":"\"顧客総数: \"&SUBTOTAL(103,顧客リスト[会社番号])","v":"顧客総数: 2"}]

{"sheet":"請求書 ₋ メイン​​","index":2,"n_rows":7,"n_cols":12,"rows_kept":7}
[{"$nulls":11}," "]
[]
[]
[null,"請求書番号","会社","請求日","プロジェクトの説明","税率","その他","前金","小計合計","請求合計","メモ"]
[null,"3-456-1","1 - 中央日本株式会社 ",{"$f":"TODAY()","v":"2019-10-23"},"プロジェクト 1",{"v":0.0875,"d":"8.75%"},{"v":100,"d":"¥100.00"},{"v":100,"d":"¥100.00"},{"$f":"SUMIF(請求書の詳細[請求書番号],\"=\"&請求書メイン[[#This Row],[請求書番号]],請求書の詳細[集計])","v":{"v":2660,"d":"¥2,660.00"}},{"$f":"(請求書メイン[[#This Row],[小計合計]]*(1+請求書メイン[[#This Row],[税率]]))+請求書メイン[[#This Row],[その他]]-請求書メイン[[#This Row],[前金]]","v":{"v":2892.7499999999995,"d":"¥2,892.75"}}]
[null,"3-456-2","2 - Contoso 株式会社",{"$f":"TODAY()+10","v":"2019-11-02"},"プロジェクト 2",{"v":0.0875,"d":"8.75%"},null,null,{"$f":"SUMIF(請求書の詳細[請求書番号],\"=\"&請求書メイン[[#This Row],[請求書番号]],請求書の詳細[集計])","v":{"v":2014,"d":"¥2,014.00"}},{"$f":"(請求書メイン[[#This Row],[小計合計]]*(1+請求書メイン[[#This Row],[税率]]))+請求書メイン[[#This Row],[その他]]-請求書メイン[[#This Row],[前金]]","v":{"v":2190.225,"d":"¥2,190.23"}}]
[null,{"$f":"\"請求合計: \"&SUBTOTAL(103,請求書メイン[請求書番号])","v":"請求合計: 2"},{"$nulls":3},"合計:",{"$f":"SUBTOTAL(109,請求書メイン[その他])","v":{"v":100,"d":"¥100.00"}},{"$f":"SUBTOTAL(109,請求書メイン[前金])","v":{"v":100,"d":"¥100.00"}},{"$f":"SUBTOTAL(109,請求書メイン[小計合計])","v":{"v":4674,"d":"¥4,674.00"}},{"$f":"SUBTOTAL(109,請求書メイン[請求合計])","v":{"v":5082.974999999999,"d":"¥5,082.98"}}]

{"sheet":"請求書の詳細","index":3,"n_rows":36,"n_cols":9,"rows_kept":36}
[{"$nulls":8}," "]
[]
[]
[null,"説明","請求書番号","品目番号","数量","単価","割引率","集計"]
[null,"請求書 3-456-1 データ 1","3-456-1",1,1,{"v":1,"d":"¥1.00"},{"v":1,"d":"¥1.00"},{"$f":"(請求書の詳細[[#This Row],[数量]]*請求書の詳細[[#This Row],[単価]])-請求書の詳細[[#This Row],[割引率]]","v":{"v":0,"d":"¥0.00"}}]
[null,"請求書 3-456-1 データ 2","3-456-1",2,2,{"v":2,"d":"¥2.00"},{"v":2,"d":"¥2.00"},{"$f":"(請求書の詳細[[#This Row],[数量]]*請求書の詳細[[#This Row],[単価]])-請求書の詳細[[#This Row],[割引率]]","v":{"v":2,"d":"¥2.00"}}]
[null,"請求書 3-456-1 データ 3","3-456-1",3,3,{"v":3,"d":"¥3.00"},{"v":3,"d":"¥3.00"},{"$f":"(請求書の詳細[[#This Row],[数量]]*請求書の詳細[[#This Row],[単価]])-請求書の詳細[[#This Row],[割引率]]","v":{"v":6,"d":"¥6.00"}}]
[null,"請求書 3-456-1 データ 4","3-456-1",4,4,{"v":4,"d":"¥4.00"},{"v":4,"d":"¥4.00"},{"$f":"(請求書の詳細[[#This Row],[数量]]*請求書の詳細[[#This Row],[単価]])-請求書の詳細[[#This Row],[割引率]]","v":{"v":12,"d":"¥12.00"}}]
[null,"請求書 3-456-1 データ 5","3-456-1",5,5,{"v":5,"d":"¥5.00"},{"v":5,"d":"¥5.00"},{"$f":"(請求書の詳細[[#This Row],[数量]]*請求書の詳細[[#This Row],[単価]])-請求書の詳細[[#This Row],[割引率]]","v":{"v":20,"d":"¥20.00"}}]
[null,"請求書 3-456-1 データ 6","3-456-1",6,6,{"v":6,"d":"¥6.00"},{"v":6,"d":"¥6.00"},{"$f":"(請求書の詳細[[#This Row],[数量]]*請求書の詳細[[#This Row],[単価]])-請求書の詳細[[#This Row],[割引率]]","v":{"v":30,"d":"¥30.00"}}]
[null,"請求書 3-456-1 データ 7","3-456-1",7,7,{"v":7,"d":"¥7.00"},{"v":7,"d":"¥7.00"},{"$f":"(請求書の詳細[[#This Row],[数量]]*請求書の詳細[[#This Row],[単価]])-請求書の詳細[[#This Row],[割引率]]","v":{"v":42,"d":"¥42.00"}}]
[null,"請求書 3-456-1 データ 8","3-456-1",8,8,{"v":8,"d":"¥8.00"},{"v":8,"d":"¥8.00"},{"$f":"(請求書の詳細[[#This Row],[数量]]*請求書の詳細[[#This Row],[単価]])-請求書の詳細[[#This Row],[割引率]]","v":{"v":56,"d":"¥56.00"}}]
[null,"請求書 3-456-1 データ 9","3-456-1",9,9,{"v":9,"d":"¥9.00"},{"v":9,"d":"¥9.00"},{"$f":"(請求書の詳細[[#This Row],[数量]]*請求書の詳細[[#This Row],[単価]])-請求書の詳細[[#This Row],[割引率]]","v":{"v":72,"d":"¥72.00"}}]
[null,"請求書 3-456-1 データ 10","3-456-1",10,10,{"v":10,"d":"¥10.00"},{"v":10,"d":"¥10.00"},{"$f":"(請求書の詳細[[#This Row],[数量]]*請求書の詳細[[#This Row],[単価]])-請求書の詳細[[#This Row],[割引率]]","v":{"v":90,"d":"¥90.00"}}]
[null,"請求書 3-456-1 データ 11","3-456-1",11,11,{"v":11,"d":"¥11.00"},{"v":11,"d":"¥11.00"},{"$f":"(請求書の詳細[[#This Row],[数量]]*請求書の詳細[[#This Row],[単価]])-請求書の詳細[[#This Row],[割引率]]","v":{"v":110,"d":"¥110.00"}}]
[null,"請求書 3-456-1 データ 12","3-456-1",12,12,{"v":12,"d":"¥12.00"},{"v":12,"d":"¥12.00"},{"$f":"(請求書の詳細[[#This Row],[数量]]*請求書の詳細[[#This Row],[単価]])-請求書の詳細[[#This Row],[割引率]]","v":{"v":132,"d":"¥132.00"}}]
[null,"請求書 3-456-1 データ 13","3-456-1",13,13,{"v":13,"d":"¥13.00"},{"v":13,"d":"¥13.00"},{"$f":"(請求書の詳細[[#This Row],[数量]]*請求書の詳細[[#This Row],[単価]])-請求書の詳細[[#This Row],[割引率]]","v":{"v":156,"d":"¥156.00"}}]
[null,"請求書 3-456-1 データ 14","3-456-1",14,14,{"v":14,"d":"¥14.00"},{"v":14,"d":"¥14.00"},{"$f":"(請求書の詳細[[#This Row],[数量]]*請求書の詳細[[#This Row],[単価]])-請求書の詳細[[#This Row],[割引率]]","v":{"v":182,"d":"¥182.00"}}]
[null,"請求書 3-456-1 データ 15","3-456-1",15,15,{"v":15,"d":"¥15.00"},{"v":15,"d":"¥15.00"},{"$f":"(請求書の詳細[[#This Row],[数量]]*請求書の詳細[[#This Row],[単価]])-請求書の詳細[[#This Row],[割引率]]","v":{"v":210,"d":"¥210.00"}}]
[null,"請求書 3-456-1 データ 16","3-456-1",16,16,{"v":16,"d":"¥16.00"},{"v":16,"d":"¥16.00"},{"$f":"(請求書の詳細[[#This Row],[数量]]*請求書の詳細[[#This Row],[単価]])-請求書の詳細[[#This Row],[割引率]]","v":{"v":240,"d":"¥240.00"}}]
[null,"請求書 3-456-1 データ 17","3-456-1",17,17,{"v":17,"d":"¥17.00"},{"v":17,"d":"¥17.00"},{"$f":"(請求書の詳細[[#This Row],[数量]]*請求書の詳細[[#This Row],[単価]])-請求書の詳細[[#This Row],[割引率]]","v":{"v":272,"d":"¥272.00"}}]
[null,"請求書 3-456-1 データ 18","3-456-1",18,18,{"v":18,"d":"¥18.00"},{"v":18,"d":"¥18.00"},{"$f":"(請求書の詳細[[#This Row],[数量]]*請求書の詳細[[#This Row],[単価]])-請求書の詳細[[#This Row],[割引率]]","v":{"v":306,"d":"¥306.00"}}]
[null,"請求書 3-456-1 データ 19","3-456-1",19,19,{"v":19,"d":"¥19.00"},{"v":19,"d":"¥19.00"},{"$f":"(請求書の詳細[[#This Row],[数量]]*請求書の詳細[[#This Row],[単価]])-請求書の詳細[[#This Row],[割引率]]","v":{"v":342,"d":"¥342.00"}}]
[null,"請求書 3-456-1 データ 20","3-456-1",20,20,{"v":20,"d":"¥20.00"},{"v":20,"d":"¥20.00"},{"$f":"(請求書の詳細[[#This Row],[数量]]*請求書の詳細[[#This Row],[単価]])-請求書の詳細[[#This Row],[割引率]]","v":{"v":380,"d":"¥380.00"}}]
[null,"請求書 3-456-2 データ 1","3-456-2","Z4567",39,{"v":5,"d":"¥5.00"},null,{"$f":"(請求書の詳細[[#This Row],[数量]]*請求書の詳細[[#This Row],[単価]])-請求書の詳細[[#This Row],[割引率]]","v":{"v":195,"d":"¥195.00"}}]
[null,"請求書 3-456-2 データ 2","3-456-2","Z4568",40,{"v":4,"d":"¥4.00"},{"v":5,"d":"¥5.00"},{"$f":"(請求書の詳細[[#This Row],[数量]]*請求書の詳細[[#This Row],[単価]])-請求書の詳細[[#This Row],[割引率]]","v":{"v":155,"d":"¥155.00"}}]
[null,"請求書 3-456-2 データ 3","3-456-2","Z4569",30,{"v":6,"d":"¥6.00"},{"v":7,"d":"¥7.00"},{"$f":"(請求書の詳細[[#This Row],[数量]]*請求書の詳細[[#This Row],[単価]])-請求書の詳細[[#This Row],[割引率]]","v":{"v":173,"d":"¥173.00"}}]
[null,"請求書 3-456-2 データ 4","3-456-2","Z4570",40,{"v":7,"d":"¥7.00"},null,{"$f":"(請求書の詳細[[#This Row],[数量]]*請求書の詳細[[#This Row],[単価]])-請求書の詳細[[#This Row],[割引率]]","v":{"v":280,"d":"¥280.00"}}]
[null,"請求書 3-456-2 データ 5","3-456-2","Z4571",10,{"v":4,"d":"¥4.00"},null,{"$f":"(請求書の詳細[[#This Row],[数量]]*請求書の詳細[[#This Row],[単価]])-請求書の詳細[[#This Row],[割引率]]","v":{"v":40,"d":"¥40.00"}}]
[null,"請求書 3-456-2 データ 6","3-456-2","Z4572",5,{"v":8,"d":"¥8.00"},null,{"$f":"(請求書の詳細[[#This Row],[数量]]*請求書の詳細[[#This Row],[単価]])-請求書の詳細[[#This Row],[割引率]]","v":{"v":40,"d":"¥40.00"}}]
[null,"請求書 3-456-2 データ 7","3-456-2","Z4573",70,{"v":6,"d":"¥6.00"},null,{"$f":"(請求書の詳細[[#This Row],[数量]]*請求書の詳細[[#This Row],[単価]])-請求書の詳細[[#This Row],[割引率]]","v":{"v":420,"d":"¥420.00"}}]
[null,"請求書 3-456-2 データ 8","3-456-2","Z4574",25,{"v":4,"d":"¥4.00"},null,{"$f":"(請求書の詳細[[#This Row],[数量]]*請求書の詳細[[#This Row],[単価]])-請求書の詳細[[#This Row],[割引率]]","v":{"v":100,"d":"¥100.00"}}]
[null,"請求書 3-456-2 データ 9","3-456-2","Z4575",5,{"v":7,"d":"¥7.00"},{"v":3,"d":"¥3.00"},{"$f":"(請求書の詳細[[#This Row],[数量]]*請求書の詳細[[#This Row],[単価]])-請求書の詳細[[#This Row],[割引率]]","v":{"v":32,"d":"¥32.00"}}]
[null,"請求書 3-456-2 データ 10","3-456-2","Z4576",80,{"v":1,"d":"¥1.00"},null,{"$f":"(請求書の詳細[[#This Row],[数量]]*請求書の詳細[[#This Row],[単価]])-請求書の詳細[[#This Row],[割引率]]","v":{"v":80,"d":"¥80.00"}}]
[null,"請求書 3-456-2 データ 11","3-456-2","Z4577",65,{"v":7,"d":"¥7.00"},null,{"$f":"(請求書の詳細[[#This Row],[数量]]*請求書の詳細[[#This Row],[単価]])-請求書の詳細[[#This Row],[割引率]]","v":{"v":455,"d":"¥455.00"}}]
[null,"請求書 3-456-2 データ 12","3-456-2","Z4578",44,{"v":1,"d":"¥1.00"},null,{"$f":"(請求書の詳細[[#This Row],[数量]]*請求書の詳細[[#This Row],[単価]])-請求書の詳細[[#This Row],[割引率]]","v":{"v":44,"d":"¥44.00"}}]